bitfinex/quotes_BTCUSD_20250616
["timestamp","ask_amount","ask_price","bid_price","bid_amount"]
[1750104114074,4.36862396,108710.0,108700.0,0.00214168]
[1750104114934,5.00745265,108710.0,108700.0,0.00214168]
[1750104115350,4.49272461,108710.0,108700.0,0.00214168]
[1750104115788,4.49272118,108710.0,108700.0,0.00214168]
[1750104116001,4.43770053,108710.0,108700.0,0.00214168]
[1750104117127,4.40061772,108710.0,108700.0,0.00214168]
[1750104117337,4.38346995,108710.0,108700.0,0.00214168]
[1750104117564,4.4006183,108710.0,108700.0,0.00214168]
[1750104117785,4.17457826,108710.0,108700.0,0.00214168]
[1750104118012,4.37244499,108710.0,108700.0,0.03726168]
[1750104118231,4.33576838,108710.0,108700.0,0.06846168]
[1750104120432,4.14176838,108710.0,108700.0,0.06846168]
[1750104120649,4.33576838,108710.0,108700.0,0.06846168]
[1750104121782,4.33576838,108710.0,108700.0,0.25263432]
[1750104121783,0.67359349,108710.0,108700.0,0.25263432]
[1750104121992,0.84030782,108710.0,108700.0,0.06864168]
[1750104122206,1.35503586,108710.0,108700.0,0.06864168]
[1750104122896,1.34503586,108710.0,108700.0,0.06864168]
[1750104125635,0.83030782,108710.0,108700.0,0.06864168]
[1750104125853,1.34503586,108710.0,108700.0,0.06864168]
[1750104126741,1.35957671,108710.0,108700.0,0.00214168]
[1750104127181,1.41782238,108710.0,108700.0,0.00214168]
[1750104127428,1.38702238,108710.0,108700.0,0.00214168]
[1750104127644,1.35957671,108710.0,108700.0,0.03434168]
[1750104127882,1.35957671,108710.0,108700.0,0.07044168]
[1750104128490,1.38702238,108710.0,108700.0,0.07044168]
[1750104128666,1.38702238,108710.0,108700.0,0.03904168]
[1750104128870,1.35957671,108710.0,108700.0,0.03904168]
[1750104129072,1.38702238,108710.0,108700.0,0.03904168]
[1750104129280,1.38702238,108710.0,108700.0,0.00214168]
[1750104132987,0.87229434,108710.0,108700.0,0.00214168]
[1750104133197,1.38702238,108710.0,108700.0,0.00214168]
[1750104135200,0.71885434,108710.0,108700.0,0.03404168]
[1750104135411,1.38682238,108710.0,108700.0,0.06944168]
[1750104135624,1.35937671,108710.0,108700.0,0.06944168]
[1750104137155,1.38682238,108710.0,108700.0,0.06944168]
[1750104138504,1.38682238,108710.0,108700.0,0.03874168]
[1750104138703,1.38682238,108710.0,108700.0,0.00684168]
[1750104138914,1.38682238,108710.0,108700.0,0.00214168]
[1750104139253,1.38682238,108710.0,108700.0,0.03974168]
[1750104139854,0.55910476,108710.0,108700.0,0.31483378]
[1750104140051,0.77146198,108710.0,108700.0,0.31483378]
[1750104140286,0.60902354,108710.0,108700.0,0.31483378]
[1750104140483,0.76226354,108710.0,108700.0,0.31483378]
[1750104140925,0.76226354,108710.0,108700.0,0.31483395]
[1750104141186,0.75306484,108710.0,108700.0,0.31483395]
[1750104141364,1.26779288,108710.0,108700.0,0.32403349]
[1750104141566,1.26775288,108710.0,108700.0,0.33323295]
[1750104142852,1.26775288,108710.0,108700.0,0.32403349]
[1750104143464,1.2585541,108710.0,108700.0,0.31483395]
[1750104144216,1.2585541,108710.0,108700.0,0.12164168]
[1750104144452,1.2585541,108710.0,108700.0,0.30563432]
[1750104144831,1.2585541,108710.0,108700.0,0.12164168]
[1750104145897,1.2585541,108710.0,108700.0,0.30563432]
[1750104146107,1.2585541,108710.0,108700.0,0.12164168]
[1750104146700,1.2585541,108710.0,108700.0,0.30563432]
[1750104146910,0.54990606,108710.0,108700.0,0.33323278]
[1750104147146,1.2585541,108710.0,108700.0,0.33323278]
[1750104147999,0.74382606,108710.0,108700.0,0.33323278]
[1750104149082,0.74382606,108710.0,108700.0,0.32403349]
[1750104149900,0.74382606,108710.0,108700.0,0.33323295]
[1750104151704,0.74382606,108710.0,108700.0,0.34243232]
[1750104152436,0.74382606,108710.0,108700.0,0.35163161]
[1750104152665,0.70881146,108710.0,108700.0,0.35163059]
[1750104153123,0.70881146,108710.0,108700.0,0.34243156]
[1750104153606,0.70881146,108710.0,108700.0,0.35163059]
[1750104154044,0.70881146,108710.0,108700.0,0.08504168]
[1750104154045,1.2235395,108710.0,108700.0,0.08504168]
[1750104154266,1.23630391,108710.0,108700.0,0.00214168]
[1750104154477,1.39444567,108710.0,108700.0,0.00214168]
[1750104156233,1.33254567,108710.0,108700.0,0.00214168]
[1750104158041,1.33254567,108710.0,108700.0,0.00670168]
[1750104158274,1.33254567,108710.0,108700.0,0.03800168]
[1750104158496,1.33254567,108710.0,108700.0,0.25549402]
[1750104158731,1.33254567,108710.0,108700.0,0.26239395]
[1750104158959,1.23630391,108710.0,108700.0,0.28079286]
[1750104159183,1.2271053,108710.0,108700.0,0.27159349]
[1750104159900,1.2271053,108710.0,108700.0,0.28999232]
[1750104160113,0.71237726,108710.0,108700.0,0.29919161]
[1750104160551,0.75301726,108710.0,108700.0,0.29919161]
[1750104160777,0.59981726,108710.0,108700.0,0.34919161]
[1750104160998,0.75301726,108710.0,108700.0,0.34919118]
[1750104161232,0.75301726,108710.0,108700.0,0.33079269]
[1750104161918,0.75301726,108710.0,108700.0,0.32159332]
[1750104161919,0.74381848,108710.0,108700.0,0.32159332]
[1750104162133,0.74381848,108710.0,108700.0,0.31239386]
[1750104162368,1.25854652,108710.0,108700.0,0.31239386]
[1750104162648,1.25854652,108710.0,108700.0,0.31239395]
[1750104162867,1.25854652,108710.0,108700.0,0.32159349]
[1750104164254,1.25854652,108710.0,108700.0,0.08800168]
[1750104164676,1.25854652,108710.0,108700.0,0.05670168]
[1750104165909,0.74381848,108710.0,108700.0,0.24989395]
[1750104166110,1.25854652,108710.0,108700.0,0.29189349]
[1750104167247,1.25875852,108710.0,108700.0,0.30109295]
[1750104167698,0.75322884,108710.0,108700.0,0.33239295]
[1750104167909,0.75322884,108710.0,108700.0,0.34159224]
[1750104168495,0.74403048,108710.0,108700.0,0.33239295]
[1750104168933,0.74403048,108710.0,108700.0,0.34159215]
[1750104168934,0.59083048,108710.0,108700.0,0.34159215]
[1750104169155,0.74403048,108710.0,108700.0,0.34159224]
[1750104169968,0.74403048,108710.0,108700.0,0.35079144]
[1750104171583,0.74403048,108710.0,108700.0,0.34159224]
[1750104171995,0.74403048,108710.0,108700.0,0.33239295]
[1750104172246,0.74403048,108710.0,108700.0,0.12080168]
[1750104172496,1.25875852,108710.0,108700.0,0.05214168]
[1750104177302,1.35500028,108710.0,108700.0,0.00214168]
[1750104177441,4.37034713,108710.0,108700.0,0.00214168]
[1750104177644,4.37498713,108710.0,108700.0,0.00214168]
[1750104178511,4.35302436,108710.0,108700.0,0.00214168]
[1750104181113,4.42447577,108710.0,108700.0,0.00214168]
[1750104182084,4.41983577,108710.0,108700.0,0.00214168]
[1750104182304,4.42461577,108710.0,108700.0,0.00214168]
[1750104182947,4.56213025,108710.0,108700.0,0.00214168]
[1750104183187,4.52094365,108710.0,108700.0,0.00214168]
[1750104183395,4.54859065,108710.0,108700.0,0.00214168]
[1750104183595,4.49362803,108710.0,108700.0,0.00214168]
[1750104183906,4.29974803,108710.0,108700.0,0.00214168]
[1750104184101,4.49354803,108710.0,108700.0,0.00214168]
[1750104185199,4.4935499,108710.0,108700.0,0.00214168]
[1750104185656,4.49355222,108710.0,108700.0,0.00214168]
[1750104186512,4.52103771,108710.0,108700.0,0.00214168]
[1750104187083,4.49334022,108710.0,108700.0,0.00214168]
[1750104187302,4.52082524,108710.0,108700.0,0.00214168]
[1750104187775,4.54107795,108710.0,108700.0,0.00214168]
[1750104188007,4.51359293,108710.0,108700.0,0.00214168]
[1750104188206,4.49334022,108710.0,108700.0,0.00214168]
[1750104188466,4.49334056,108710.0,108700.0,0.00214168]
[1750104190239,4.4933392,108710.0,108700.0,0.00214168]
[1750104190462,4.52080817,108710.0,108700.0,0.00214168]
[1750104190680,4.32700817,108710.0,108700.0,0.00214168]
[1750104190895,4.52080125,108710.0,108700.0,0.00214168]
[1750104191414,4.52080065,108710.0,108700.0,0.00214168]
[1750104193053,4.32700161,108710.0,108700.0,0.00214168]
[1750104193663,4.46298812,108710.0,108700.0,0.00214168]
[1750104194189,4.46298665,108710.0,108700.0,0.00214168]
[1750104194534,4.48015785,108710.0,108700.0,0.00214168]
[1750104194750,4.39406208,108710.0,108700.0,0.00214168]
[1750104194965,4.3370513,108710.0,108700.0,0.00214168]
[1750104195431,4.43470208,108710.0,108700.0,0.00214168]
[1750104197170,4.43470563,108710.0,108700.0,0.00214168]
[1750104197385,0.20240991,108690.0,108680.0,0.002]
[1750104197592,1.48126775,108690.0,108680.0,0.002]
[1750104197942,0.96653971,108690.0,108680.0,0.00659]
[1750104198155,0.81337971,108690.0,108680.0,0.00659]
[1750104198403,1.00717971,108690.0,108680.0,0.03949]
[1750104198720,1.00717971,108690.0,108680.0,0.04049]
[1750104199340,0.29865167,108690.0,108680.0,0.07169]
[1750104199553,1.52190775,108690.0,108680.0,0.0359]
[1750104199790,1.5364486,108690.0,108680.0,0.003]
[1750104199999,4.5389546,108690.0,108680.0,0.003]
[1750104200199,4.5437346,108690.0,108680.0,0.003]
[1750104200400,4.5437346,108690.0,108680.0,0.004]
[1750104200850,4.5389546,108690.0,108680.0,0.002]
[1750104203212,4.55864276,108690.0,108680.0,0.002]
[1750104203415,4.56342276,108690.0,108680.0,0.002]
[1750104203614,4.90342276,108690.0,108680.0,0.002]
[1750104203821,4.8837346,108690.0,108680.0,0.002]
[1750104204028,4.6899346,108690.0,108680.0,0.002]
[1750104204239,4.8836946,108690.0,108680.0,0.002]
[1750104205477,4.91118175,108690.0,108680.0,0.002]
[1750104205687,4.9698089,108690.0,108680.0,0.002]
[1750104205892,5.03589813,108690.0,108680.0,0.002]
[1750104206108,5.61138864,108690.0,108680.0,0.002]
[1750104206324,3.55849402,108670.0,108660.0,0.002]
[1750104206533,5.0256498,108670.0,108660.0,0.002]
[1750104206737,4.96680813,108670.0,108660.0,0.002]
[1750104206950,5.09061635,108670.0,108660.0,0.002]
[1750104207416,5.09055172,108670.0,108660.0,0.002]
[1750104207632,4.89137492,108670.0,108660.0,0.002]
[1750104207835,5.01394634,108670.0,108660.0,0.002]
[1750104208284,5.01390634,108670.0,108660.0,0.002]
[1750104208486,5.05048787,108670.0,108660.0,0.002]
[1750104209068,5.04748787,108670.0,108660.0,0.002]
[1750104209269,5.05148787,108670.0,108660.0,0.002]
[1750104209644,5.04948787,108670.0,108660.0,0.002]
[1750104209873,4.83859672,108670.0,108660.0,0.002]
[1750104210082,5.03635672,108670.0,108660.0,0.002]
[1750104210285,4.84259672,108670.0,108660.0,0.002]
[1750104210489,4.68863158,108670.0,108660.0,0.002]
[1750104210735,4.47389165,108670.0,108660.0,0.002]
[1750104210953,4.63705165,108670.0,108660.0,0.002]
[1750104211172,4.6515925,108670.0,108660.0,0.002]
[1750104212876,4.57823097,108670.0,108660.0,0.002]
[1750104213091,4.57823097,108670.0,108660.0,0.00685]
[1750104214183,0.73635693,108670.0,108660.0,0.0653]
[1750104214381,1.38976522,108670.0,108660.0,0.07015]
[1750104215735,1.38376522,108670.0,108660.0,0.07015]
[1750104215867,1.38376522,108670.0,108660.0,0.07215]
[1750104218658,1.19000522,108670.0,108660.0,0.07215]
[1750104218889,1.38380522,108670.0,108660.0,0.07215]
[1750104219117,0.86907718,108670.0,108660.0,0.07215]
[1750104219330,1.38380522,108670.0,108660.0,0.07215]
[1750104220380,1.38380522,108670.0,108660.0,0.03985]
[1750104221824,0.86907718,108670.0,108660.0,0.03985]
[1750104222027,1.38380522,108670.0,108660.0,0.03985]
[1750104224873,1.38380522,108670.0,108660.0,0.004]
[1750104225089,1.41122597,108670.0,108660.0,0.004]
[1750104225322,4.35013197,108670.0,108660.0,0.004]
[1750104225969,4.92676001,108670.0,108660.0,0.004]
[1750104226185,4.94861006,108670.0,108660.0,0.004]
[1750104226409,4.98519159,108670.0,108660.0,0.004]
[1750104227154,4.9471482,108670.0,108660.0,0.004]
[1750104227398,4.96546452,108670.0,108660.0,0.004]
[1750104227645,4.91056667,108670.0,108660.0,0.004]
[1750104227848,4.93178026,108670.0,108660.0,0.004]
[1750104228054,4.93178026,108670.0,108660.0,0.002]
[1750104228055,4.93822719,108670.0,108660.0,0.002]
[1750104228268,5.10966036,108670.0,108660.0,0.002]
[1750104228483,0.62202529,108650.0,108640.0,0.002]
[1750104228695,4.41589434,108650.0,108640.0,0.002]
[1750104229782,4.41589434,108650.0,108640.0,0.007]
[1750104230932,4.42233851,108650.0,108640.0,0.007]
[1750104231145,4.49100233,108650.0,108640.0,0.007]
[1750104231359,4.57363614,108650.0,108640.0,0.007]
[1750104231568,4.44083971,108650.0,108640.0,0.007]
[1750104232395,4.95556775,108650.0,108640.0,0.006]
[1750104232602,4.95556775,108650.0,108640.0,0.002]
[1750104233240,4.90059694,108650.0,108640.0,0.002]
[1750104233490,4.99674616,108650.0,108640.0,0.004]
[1750104233913,4.99674218,108650.0,108640.0,0.004]
[1750104235221,5.07002613,108650.0,108640.0,0.004]
[1750104235635,4.99674218,108650.0,108640.0,0.002]
[1750104235843,4.99874218,108650.0,108640.0,0.002]
[1750104236923,4.90259296,108650.0,108640.0,0.002]
[1750104237792,4.89615277,108650.0,108640.0,0.002]
[1750104237970,4.90259178,108650.0,108640.0,0.002]
[1750104239625,4.89615277,108650.0,108640.0,0.002]
[1750104239822,4.94314921,108650.0,108640.0,0.002]
[1750104239974,5.03929843,108650.0,108640.0,0.002]
[1750104241393,5.09419254,108650.0,108640.0,0.002]
[1750104242402,4.99804058,108650.0,108640.0,0.002]
[1750104244080,4.99803816,108650.0,108640.0,0.002]
[1750104246205,4.80435816,108650.0,108640.0,0.002]
[1750104246397,4.48327012,108650.0,108640.0,0.002]
[1750104246812,4.28485012,108650.0,108640.0,0.002]
[1750104247018,4.41349012,108650.0,108640.0,0.00669]
[1750104247221,4.41349012,108650.0,108640.0,0.002]
[1750104247706,4.50963934,108650.0,108640.0,0.002]
[1750104248145,4.50963864,108650.0,108640.0,0.002]
[1750104248358,4.54133864,108650.0,108640.0,0.002]
[1750104248561,4.57861864,108650.0,108640.0,0.002]
[1750104248822,5.09334668,108650.0,108640.0,0.002]
[1750104249464,4.57861864,108650.0,108640.0,0.002]
[1750104250323,5.09334668,108650.0,108640.0,0.002]
[1750104250765,4.57861864,108650.0,108640.0,0.002]
[1750104250974,4.44519398,108650.0,108640.0,0.002]
[1750104251214,4.41349398,108650.0,108640.0,0.0345]
[1750104251437,4.26041398,108650.0,108640.0,0.03919]
[1750104251652,4.44369346,108650.0,108640.0,0.07159]
[1750104251846,4.44369346,108650.0,108640.0,0.03919]
[1750104252739,3.91005346,108650.0,108640.0,0.0345]
[1750104252949,3.84436926,108650.0,108640.0,0.07009]
[1750104253160,4.01199011,108650.0,108640.0,0.07009]
[1750104253366,4.35199011,108650.0,108640.0,0.07009]
[1750104254868,4.35195011,108650.0,108640.0,0.07009]
[1750104255515,4.38858473,108650.0,108640.0,0.07009]
[1750104255944,3.87385669,108650.0,108640.0,0.07009]
[1750104256155,4.38858473,108650.0,108640.0,0.07009]
[1750104258359,3.83722207,108650.0,108640.0,0.07009]
[1750104258598,4.35195011,108650.0,108640.0,0.07009]
[1750104263273,4.35195011,108650.0,108640.0,0.03919]
[1750104263719,4.37961111,108650.0,108640.0,0.03919]
[1750104265232,4.37961111,108650.0,108640.0,0.07149]
[1750104265461,4.35204273,108650.0,108640.0,0.07149]
[1750104265682,4.37953111,108650.0,108640.0,0.07149]
[1750104265905,4.35204273,108650.0,108640.0,0.07149]
[1750104266574,4.37953111,108650.0,108640.0,0.07149]
[1750104267935,4.18601111,108650.0,108640.0,0.07149]
[1750104268390,3.82277384,108650.0,108640.0,0.07149]
[1750104268612,4.33750188,108650.0,108640.0,0.07149]
[1750104268918,4.14398188,108650.0,108640.0,0.07149]
[1750104269254,4.33750188,108650.0,108640.0,0.07149]
[1750104271695,4.36499026,108650.0,108640.0,0.07149]
[1750104271891,4.36499026,108650.0,108640.0,0.03919]
[1750104273128,4.36495026,108650.0,108640.0,0.03919]
[1750104274670,4.37949111,108650.0,108640.0,0.0345]
[1750104274875,4.37949111,108650.0,108640.0,0.002]
[1750104275687,4.37949111,108650.0,108640.0,0.00684]
[1750104275922,4.37949111,108650.0,108640.0,0.06894]
[1750104276985,4.37949111,108650.0,108640.0,0.03714]
[1750104279419,4.41612573,108650.0,108640.0,0.03714]
[1750104280487,4.42259451,108650.0,108640.0,0.03714]
[1750104282388,4.39510613,108650.0,108640.0,0.03714]
[1750104282851,3.88037809,108650.0,108640.0,0.06954]
[1750104283082,4.39510613,108650.0,108640.0,0.06954]
[1750104284648,4.39510613,108650.0,108640.0,0.03714]
[1750104286583,4.39510613,108650.0,108640.0,0.002]
[1750104286805,4.45000024,108650.0,108640.0,0.002]
[1750104288193,4.39510613,108650.0,108640.0,0.00684]
[1750104288408,4.39510613,108650.0,108640.0,0.03804]
[1750104288681,3.35937809,108650.0,108640.0,0.25453425]
[1750104288923,0.04236726,108650.0,108640.0,0.33214718]
[1750104289142,0.51332662,108650.0,108640.0,0.33214718]
[1750104289417,0.54449078,108650.0,108640.0,0.33214718]
[1750104289639,0.36396064,108650.0,108640.0,0.84687522]
[1750104289831,0.0092031,108650.0,108640.0,0.84687522]
[1750104290049,0.0092031,108650.0,108640.0,0.33214718]
[1750104290711,0.38047803,108660.0,108650.0,0.33132813]
[1750104290921,0.30197614,108670.0,108660.0,0.25806321]
[1750104291205,0.49221603,108670.0,108660.0,0.32210597]
[1750104291451,0.85428846,108670.0,108660.0,0.33130848]
[1750104291689,0.70136846,108670.0,108660.0,0.33130848]
[1750104291872,0.85428846,108670.0,108660.0,0.32210597]
[1750104292088,0.49892095,108670.0,108660.0,0.33130864]
[1750104292301,0.04974255,108670.0,108660.0,0.33851106]
[1750104292504,0.52981322,108670.0,108660.0,0.33951106]
[1750104292717,1.01391139,108670.0,108660.0,0.33951106]
[1750104292932,0.64630676,108670.0,108660.0,0.33951106]
[1750104293061,8.676e-05,108670.0,108660.0,0.33951106]
[1750104293543,0.34008676,108670.0,108660.0,0.33951106]
[1750104294824,8.676e-05,108670.0,108660.0,0.8542391]
[1750104295030,8.676e-05,108670.0,108660.0,1.0071191]
[1750104295243,8.676e-05,108670.0,108660.0,1.10336086]
[1750104296511,8.676e-05,108670.0,108660.0,0.95048086]
[1750104296698,8.676e-05,108670.0,108660.0,1.10336086]
[1750104297298,8.676e-05,108670.0,108660.0,1.8180889]
[1750104297968,8.676e-05,108670.0,108660.0,1.8180489]
[1750104298197,8.676e-05,108670.0,108660.0,1.8170489]
[1750104298430,8.676e-05,108670.0,108660.0,0.78759282]
[1750104298659,8.676e-05,108670.0,108660.0,1.8200489]
[1750104298891,0.02,108680.0,108670.0,0.21164891]
[1750104299122,0.02,108680.0,108670.0,0.93890042]
[1750104299589,0.02,108680.0,108670.0,0.98890042]
[1750104299813,0.002,108690.0,108680.0,0.46635944]
[1750104300077,0.002,108690.0,108680.0,1.29146924]
[1750104300309,0.002,108690.0,108680.0,1.80619728]
[1750104300553,0.002,108690.0,108680.0,1.84663728]
[1750104300791,0.002,108690.0,108680.0,1.86663728]
[1750104301476,0.002,108690.0,108680.0,1.86963728]
[1750104301718,0.002,108690.0,108680.0,1.67635728]
[1750104301945,0.002,108690.0,108680.0,1.86963728]
[1750104302174,0.002,108690.0,108680.0,1.35790924]
[1750104302650,0.002,108690.0,108680.0,1.16462924]
[1750104302879,0.002,108690.0,108680.0,1.87259728]
[1750104304076,0.002,108690.0,108680.0,0.6499012]
[1750104304308,0.002,108690.0,108680.0,0.6299012]
[1750104304545,0.002,108690.0,108680.0,0.7827012]
[1750104304786,0.002,108690.0,108680.0,0.4299012]
[1750104305031,0.02039968,108690.0,108680.0,0.45535944]
[1750104305260,0.02959964,108690.0,108680.0,0.45535944]
[1750104305492,0.20441017,108690.0,108680.0,0.24002649]
[1750104305729,0.70993799,108690.0,108680.0,0.056]
[1750104305931,0.74193799,108690.0,108680.0,0.056]
[1750104306206,1.08193799,108690.0,108680.0,0.056]
[1750104306457,1.13193799,108690.0,108680.0,0.056]
[1750104306697,1.13193799,108690.0,108680.0,0.24002649]
[1750104306927,1.13193799,108690.0,108680.0,0.25842888]
[1750104307153,1.13193799,108690.0,108680.0,0.056]
[1750104307405,1.13193799,108690.0,108680.0,0.053]
[1750104307634,1.13193799,108690.0,108680.0,0.054]
[1750104307856,1.13193799,108690.0,108680.0,0.051]
[1750104308082,0.61720995,108690.0,108680.0,0.24622764]
[1750104308305,1.13193799,108690.0,108680.0,0.06220132]
[1750104308544,1.1227376,108690.0,108680.0,0.053]
[1750104308778,1.12267319,108690.0,108680.0,0.053]
[1750104312557,1.15497319,108690.0,108680.0,0.053]
[1750104312784,1.15950319,108690.0,108680.0,0.24622781]
[1750104313014,0.60794515,108690.0,108680.0,0.24622781]
[1750104313235,1.12746437,108690.0,108680.0,0.25542905]
[1750104313460,1.3206744,108690.0,108680.0,0.27383118]
[1750104313884,0.90666363,108690.0,108680.0,0.28303166]
[1750104314176,0.39193559,108690.0,108680.0,0.8331897]
[1750104314404,0.39193559,108690.0,108680.0,1.0183497]
[1750104314626,0.40113539,108690.0,108680.0,0.50362166]
[1750104315100,0.39193559,108690.0,108680.0,0.50362166]
[1750104316973,0.40113539,108690.0,108680.0,0.47122166]
[1750104318533,0.40113539,108690.0,108680.0,0.31846166]
[1750104318665,0.40113539,108690.0,108680.0,0.47122166]
[1750104319114,0.41033536,108690.0,108680.0,0.47122166]
[1750104319522,0.40113539,108690.0,108680.0,0.47122166]
[1750104319730,0.41033536,108690.0,108680.0,0.47122166]
[1750104320195,0.40113539,108690.0,108680.0,0.47122166]
[1750104320402,0.05193559,108690.0,108680.0,0.96013146]
[1750104320704,0.00193559,108690.0,108680.0,1.8276195]
[1750104320927,0.07,108700.0,108690.0,0.32793996]
[1750104321156,0.07,108700.0,108690.0,0.842668]
[1750104321383,0.07,108700.0,108690.0,1.09166976]
[1750104322097,0.07,108700.0,108690.0,1.09666976]
[1750104322978,0.07,108700.0,108690.0,1.09626949]
[1750104323592,0.07,108700.0,108690.0,1.10026949]
[1750104325043,0.07,108700.0,108690.0,0.94750949]
[1750104325252,0.07,108700.0,108690.0,1.10026949]
[1750104325535,0.07,108700.0,108690.0,0.58594172]
[1750104325718,0.07,108700.0,108690.0,1.10026949]
[1750104325925,0.07,108700.0,108690.0,0.58594172]
[1750104328609,0.07,108700.0,108690.0,1.10026949]
[1750104331504,0.07,108700.0,108690.0,1.10970611]
[1750104331714,0.07,108700.0,108690.0,1.10966611]
[1750104332192,0.07,108700.0,108690.0,1.10022949]
[1750104333416,0.07,108700.0,108690.0,0.94750949]
[1750104333627,0.07,108700.0,108690.0,1.10022949]
[1750104333824,0.09759761,108700.0,108690.0,0.27060996]
[1750104334075,0.12939744,108700.0,108690.0,0.42332996]
[1750104334288,0.1385969,108700.0,108690.0,0.42332996]
[1750104334491,0.12939744,108700.0,108690.0,0.42332996]
[1750104335110,0.31339067,108700.0,108690.0,0.25221003]
[1750104335316,0.35003067,108700.0,108690.0,0.25221003]
[1750104335536,0.69003067,108700.0,108690.0,0.26141033]
[1750104335743,0.70282137,108700.0,108690.0,0.25221003]
[1750104335961,0.70282137,108700.0,108690.0,0.059]
[1750104335962,1.25794985,108700.0,108690.0,0.059]
[1750104336366,1.35419161,108700.0,108690.0,0.009]
[1750104336574,1.38163924,108700.0,108690.0,0.009]
[1750104337574,1.38163924,108700.0,108690.0,0.004]
[1750104337771,1.31803924,108700.0,108690.0,0.004]
[1750104337927,1.31803924,108700.0,108690.0,0.057]
[1750104338317,0.1419899,108700.0,108690.0,0.78613783]
[1750104338543,0.12,108700.0,108690.0,0.93655773]
[1750104338998,0.07,108700.0,108690.0,0.93655773]
[1750104339206,0.07,108700.0,108690.0,1.03479949]
[1750104341045,0.07,108700.0,108690.0,1.23479949]
[1750104344849,0.07,108700.0,108690.0,1.24412326]
[1750104347307,0.07,108700.0,108690.0,0.89140326]
[1750104347521,0.07,108700.0,108690.0,0.52975549]
[1750104348193,0.07,108700.0,108690.0,0.37207549]
[1750104348643,0.07,108700.0,108690.0,0.53075549]
[1750104350258,0.07,108700.0,108690.0,0.37807549]
[1750104350515,0.07,108700.0,108690.0,0.53075549]
[1750104353182,0.07,108700.0,108690.0,0.37807549]
[1750104353417,0.07,108700.0,108690.0,0.52143172]
[1750104354144,0.07,108700.0,108690.0,0.36875172]
[1750104354367,0.07,108700.0,108690.0,0.52143172]
[1750104355506,0.07,108700.0,108690.0,1.03575949]
[1750104355939,0.07,108700.0,108690.0,1.23575949]
[1750104356594,0.07,108700.0,108690.0,0.72143172]
[1750104356822,0.07,108700.0,108690.0,1.23575949]
[1750104359115,0.07,108700.0,108690.0,0.72143172]
[1750104359308,0.07,108700.0,108690.0,0.52139172]
[1750104359506,0.07,108700.0,108690.0,0.36875172]
[1750104359714,0.07,108700.0,108690.0,0.52100172]
[1750104360264,0.07,108700.0,108690.0,0.36385172]
[1750104360464,0.07,108700.0,108690.0,0.52100172]
[1750104360667,0.07,108700.0,108690.0,0.36836172]
[1750104360979,0.07,108700.0,108690.0,0.52100172]
[1750104365080,0.07,108700.0,108690.0,0.36836172]
[1750104365307,0.07,108700.0,108690.0,0.52100172]
[1750104365543,0.07,108700.0,108690.0,1.23532949]
[1750104369164,0.07,108700.0,108690.0,1.30122949]
[1750104373090,0.07,108700.0,108690.0,1.81540138]
[1750104373869,0.07,108700.0,108690.0,0.40146172]
[1750104374090,0.07,108700.0,108690.0,1.06835155]
[1750104374346,0.07,108700.0,108690.0,0.91571155]
[1750104374562,0.07,108700.0,108690.0,1.06835155]
[1750104375458,0.07,108700.0,108690.0,0.91571155]
[1750104375902,0.07,108700.0,108690.0,1.06835155]
[1750104376808,0.07,108700.0,108690.0,1.06831155]
[1750104377472,0.07,108700.0,108690.0,0.55406172]
[1750104377701,0.07,108700.0,108690.0,0.91571155]
[1750104377925,0.07,108700.0,108690.0,1.06831155]
[1750104383262,0.07,108700.0,108690.0,0.36385172]
[1750104383489,0.8420415,108700.0,108690.0,0.006]
[1750104383707,1.20539059,108700.0,108690.0,0.056]
[1750104383918,1.21822803,108700.0,108690.0,0.056]
[1750104384583,1.21822803,108700.0,108690.0,0.24921003]
[1750104384795,1.21822803,108700.0,108690.0,0.25841033]
[1750104385227,1.19619147,108700.0,108690.0,0.25841033]
[1750104385434,1.19619147,108700.0,108690.0,0.25541033]
[1750104385648,1.1869921,108700.0,108690.0,0.25541033]
[1750104385863,1.1869921,108700.0,108690.0,0.25341033]
[1750104386082,1.1869921,108700.0,108690.0,0.26261055]
[1750104387836,0.07,108700.0,108690.0,0.26261055]
[1750104388011,0.07,108700.0,108690.0,1.56286198]
[1750104388215,0.07,108700.0,108690.0,1.59406198]
[1750104388417,0.07,108700.0,108690.0,1.07981215]
[1750104389578,0.07,108700.0,108690.0,0.53436232]
[1750104389793,0.1318,108700.0,108690.0,0.28101056]
[1750104390009,0.65086983,108700.0,108690.0,0.43261056]
[1750104390231,0.65086983,108700.0,108690.0,0.26161055]
[1750104390445,0.6600687,108700.0,108690.0,0.28001056]
[1750104390659,0.67846685,108700.0,108690.0,0.28301056]
[1750104390865,0.68766622,108700.0,108690.0,0.28301056]
[1750104391083,0.69686568,108700.0,108690.0,0.28301056]
[1750104391968,0.16421702,108700.0,108690.0,0.28501056]
[1750104392172,0.16421702,108700.0,108690.0,0.28201056]
[1750104392409,0.07,108700.0,108690.0,0.28401056]
[1750104392618,0.07,108700.0,108690.0,0.80296039]
[1750104392830,0.07,108700.0,108690.0,0.31641056]
[1750104393043,0.07,108700.0,108690.0,0.92694287]
[1750104393693,0.07,108700.0,108690.0,0.95944287]
[1750104394054,0.07,108700.0,108690.0,0.96144287]
[1750104394478,0.07,108700.0,108690.0,0.44715232]
[1750104394741,0.07,108700.0,108690.0,0.93094287]
[1750104396619,0.07,108700.0,108690.0,0.41665232]
[1750104397045,0.07,108700.0,108690.0,0.38495232]
[1750104397940,0.1012,108700.0,108690.0,0.53751232]
[1750104398427,0.07,108700.0,108690.0,0.53751232]
[1750104399101,0.1012,108700.0,108690.0,0.38025232]
[1750104399357,0.134,108700.0,108690.0,0.53281232]
[1750104399887,0.1012,108700.0,108690.0,0.53281232]
[1750104400109,0.1012,108700.0,108690.0,0.43657056]
[1750104400544,0.1012,108700.0,108690.0,0.42757056]
[1750104401663,0.11039887,108700.0,108690.0,0.42757056]
[1750104401891,0.1342,108700.0,108690.0,0.42757056]
[1750104404208,0.07,108700.0,108690.0,1.07580287]
[1750104404430,0.07,108700.0,108690.0,1.10830287]
[1750104404660,0.07,108700.0,108690.0,1.32830287]
[1750104405129,0.07,108700.0,108690.0,1.35593587]
[1750104407327,0.07,108700.0,108690.0,1.35589587]
[1750104407557,0.07,108700.0,108690.0,0.81397232]
[1750104407797,0.07,108700.0,108690.0,1.32826287]